bitfinex-derivatives/quotes_SOLF0:USTF0_20220101
["timestamp","ask_amount","ask_price","bid_price","bid_amount"]
[1641062146032,12.18974535,174.75,174.67,12.18974535]
[1641062146231,17.91155115,174.75,174.67,12.18974535]
[1641062146636,12.18974535,174.72,174.65,1.3667744]
[1641062147033,5.72311566,174.71,174.65,1.3667744]
[1641062148033,14.88710464,174.7,174.62,12.18974535]
[1641062148234,33.38905229,174.67,174.62,12.18974535]
[1641062149033,2.69735929,174.66,174.59,12.18974535]
[1641062150036,14.88710464,174.66,174.58,12.18974535]
[1641062151338,3.0,174.65,174.59,12.18974535]
[1641062151537,2.69735929,174.66,174.59,12.18974535]
[1641062152140,14.88710464,174.66,174.58,12.18974535]
[1641062152943,2.69735929,174.66,174.59,12.18974535]
[1641062153748,27.66479,174.69,174.62,12.18974535]
[1641062154143,27.66479,174.65,174.62,12.18974535]
[1641062154545,27.66479,174.65,174.61,12.18974535]
[1641062154946,2.6986939,174.68,174.61,12.18974535]
[1641062155347,12.18974535,174.68,174.6,12.18974535]
[1641062156148,2.69858445,174.68,174.61,12.18974535]
[1641062156747,14.8883298,174.68,174.6,12.18974535]
[1641062158248,2.69858445,174.68,174.62,12.18974535]
[1641062158648,2.69858445,174.68,174.62,18.92474535]
[1641062159051,4.06545542,174.65,174.62,6.735]
[1641062159855,4.06545542,174.67,174.63,1.3667744]
[1641062160054,2.69858445,174.69,174.63,4.3667744]
[1641062160253,8.8961298,174.7,174.68,55.32958]
[1641062160753,60.08587051,174.8,174.68,55.32958]
[1641062161953,9.90107916,174.79,174.69,6.35605265]
[1641062162153,12.90107916,174.79,174.71,27.66479]
[1641062162353,9.90107916,174.79,174.71,27.66479]
[1641062164060,42.32215967,174.79,174.71,27.66479]
[1641062164959,42.32215967,174.79,174.74,3.0]
[1641062165357,42.32215967,174.79,174.71,36.50179]
[1641062165760,42.32215967,174.79,174.72,3.0]
[1641062165958,9.90107916,174.82,174.72,3.0]
[1641062166358,9.90107916,174.82,174.74,27.66479]
[1641062166959,9.90107916,174.84,174.74,27.66479]
[1641062167859,42.32215967,174.84,174.74,27.66479]
[1641062168559,32.42108051,174.83,174.74,27.66479]
[1641062169561,42.32215967,174.84,174.74,27.66479]
[1641062172364,27.66479,174.82,174.72,30.6036]
[1641062173464,9.90107916,174.81,174.72,30.6036]
[1641062175767,9.90107916,174.84,174.73,6.59617164]
[1641062176370,9.90107916,174.84,174.75,27.66479]
[1641062176971,27.66479,174.86,174.75,27.66479]
[1641062176972,60.08587051,174.86,174.75,27.66479]
[1641062177969,9.90107916,174.85,174.75,27.66479]
[1641062182279,9.90107916,174.85,174.77,3.0]
[1641062182480,9.90107916,174.85,174.75,30.66479]
[1641062182680,9.90107916,174.85,174.75,27.66479]
[1641062183480,9.90107916,174.85,174.75,30.66479]
[1641062184280,9.90107916,174.85,174.75,27.66479]
[1641062185280,9.90107916,174.85,174.75,30.66479]
[1641062185983,9.90107916,174.85,174.76,6.59591884]
[1641062188989,9.90107916,174.85,174.75,27.66479]
[1641062189889,9.90107916,174.85,174.76,6.59594291]
[1641062190390,12.18736656,174.84,174.76,18.78330947]
[1641062190592,27.66479,174.82,174.76,18.78330947]
[1641062191195,12.18736656,174.81,174.73,18.78330947]
[1641062191895,12.18736656,174.81,174.73,12.18736656]
[1641062192100,12.18736656,174.8,174.72,42.79096656]
[1641062192896,12.18736656,174.79,174.71,39.85215656]
[1641062193497,12.18736656,174.77,174.71,27.66479]
[1641062194397,42.07847507,174.81,174.71,27.66479]
[1641062194799,27.66479,174.79,174.71,27.66479]
[1641062195201,12.19076536,174.78,174.71,27.66479]
[1641062196003,12.19076536,174.78,174.7,12.18736656]
[1641062196800,12.19076536,174.77,174.69,18.78383678]
[1641062198400,12.19025942,174.79,174.71,12.18736656]
[1641062198801,12.19025942,174.79,174.71,39.85215656]
[1641062199302,12.19025942,174.78,174.71,27.66479]
[1641062200106,9.65737701,174.81,174.71,27.66479]
[1641062200908,12.26315036,174.81,174.72,1.45774821]
[1641062201109,12.19056467,174.8,174.72,20.24145769]
[1641062203410,18.28256467,174.8,174.72,20.24145769]
[1641062203811,2.60577335,174.79,174.72,20.24145769]
[1641062204510,12.26313599,174.81,174.72,20.24145769]
[1641062205112,14.77947262,174.81,174.72,1.45774821]
[1641062206615,12.17371364,174.8,174.72,20.24147089]
[1641062207415,12.17371364,174.8,174.72,13.64511477]
[1641062207615,12.17371364,174.78,174.72,1.45774821]
[1641062208216,12.17371364,174.76,174.72,1.45774821]
[1641062209018,12.17371364,174.77,174.72,1.45774821]
[1641062209516,14.79670922,174.78,174.72,1.45774821]
[1641062211618,29.5861,174.79,174.72,1.45774821]
[1641062212321,14.7965504,174.78,174.72,1.45774821]
[1641062213123,12.19072007,174.76,174.72,1.45774821]
[1641062213924,12.26539652,174.78,174.72,1.45774821]
[1641062213925,12.19072007,174.77,174.72,1.45774821]
[1641062214724,12.19072007,174.77,174.71,27.66479]
[1641062214725,12.19072007,174.74,174.71,27.66479]
[1641062215325,12.19072007,174.74,174.68,27.66479]
[1641062215625,12.19310537,174.76,174.72,1.45766352]
[1641062216328,12.19310537,174.76,174.69,1.45766352]
[1641062217827,2.60583033,174.77,174.7,12.18736656]
[1641062218627,39.85663668,174.78,174.7,12.18736656]
[1641062219528,14.79820571,174.77,174.69,20.24154393]
[1641062220430,4.06425244,174.72,174.69,1.45766352]
[1641062221031,12.26673351,174.77,174.69,1.45766352]
[1641062221330,4.06406789,174.73,174.69,20.24159153]
[1641062222032,4.06395735,174.74,174.7,12.18736656]
[1641062222631,4.0640886,174.73,174.69,20.24159153]
[1641062223431,12.19187204,174.77,174.69,13.64503008]
[1641062223631,4.06430083,174.71,174.69,1.45766352]
[1641062224331,12.19187204,174.75,174.69,1.45766352]
[1641062225134,4.06417852,174.72,174.69,1.45766352]
[1641062225930,2.60635903,174.75,174.69,1.45766352]
[1641062226531,4.06413143,174.72,174.69,1.45766352]
[1641062228033,4.04932089,174.74,174.68,12.18736656]
[1641062228233,4.04932089,174.74,174.66,34.071]
[1641062228734,14.78890984,174.78,174.67,1.45229352]
[1641062229534,4.04925732,174.74,174.67,1.45229352]
[1641062230138,4.04942294,174.73,174.68,3.0]
[1641062230339,4.04942294,174.73,174.67,1.45229352]
[1641062230935,12.19187204,174.77,174.67,1.45229352]
[1641062231136,4.04930511,174.75,174.67,4.45229352]
[1641062231538,4.04930511,174.75,174.67,1.45229352]
[1641062231739,75.16325858,174.79,174.67,1.45229352]
[1641062231939,4.04911712,174.76,174.68,1.45229352]
[1641062232738,2.59681364,174.78,174.67,20.21188076]
[1641062232939,2.59681364,174.78,174.67,23.21188076]
[1641062233339,4.04912184,174.76,174.68,1.45229352]
[1641062234042,2.59681364,174.78,174.68,1.45229352]
[1641062235044,4.04903257,174.76,174.68,1.45229352]
[1641062235843,4.0640502,174.74,174.7,12.18736656]
[1641062237042,6.178,174.74,174.7,12.18736656]
[1641062237542,10.24197916,174.74,174.7,12.18736656]
[1641062238243,6.178,174.74,174.7,12.18736656]
[1641062238444,12.19187204,174.78,174.69,1.45229352]
[1641062238445,4.0639656,174.72,174.69,1.45229352]
[1641062238644,2.60626179,174.73,174.71,3.0]
[1641062238845,12.19187204,174.76,174.72,3.0]
[1641062239745,32.42108051,174.8,174.74,27.66479]
[1641062239944,12.1897431,174.8,174.74,27.66479]
[1641062240848,12.18890304,174.81,174.74,27.66479]
[1641062241046,12.18890304,174.81,174.74,59.56869]
[1641062241947,27.66479,174.83,174.74,59.56869]
[1641062242147,12.1885722,174.82,174.74,71.75605656]
[1641062244354,12.1885722,174.81,174.74,59.56869]
[1641062244956,9.49575447,174.82,174.74,59.56869]
[1641062245158,9.49575447,174.82,174.74,27.66479]
[1641062245357,9.49575447,174.82,174.73,12.18736656]
[1641062245758,12.19001658,174.81,174.73,12.18736656]
[1641062246660,12.19001658,174.8,174.72,12.18736656]
[1641062247464,12.18975042,174.81,174.73,12.18736656]
[1641062248363,9.49575447,174.82,174.73,12.18736656]
[1641062249168,27.66479,174.83,174.73,12.18736656]
[1641062249365,27.66479,174.83,174.71,27.66479]
[1641062249563,27.66479,174.83,174.71,30.66479]
[1641062249965,27.66479,174.83,174.71,27.66479]
[1641062251966,27.66479,174.8,174.71,27.66479]
[1641062252567,27.66479,174.83,174.71,27.66479]
[1641062252867,12.1340162,174.82,174.71,27.66479]
[1641062254068,27.66479,174.79,174.71,27.66479]
[1641062254667,12.1340162,174.81,174.71,27.66479]
[1641062256371,27.66479,174.8,174.71,27.66479]
[1641062256570,57.03889,174.8,174.71,27.66479]
[1641062257470,29.3741,174.8,174.71,27.66479]
[1641062257770,12.1340162,174.78,174.71,27.66479]
[1641062260574,12.1340162,174.79,174.71,39.85215656]
[1641062264881,12.1340162,174.79,174.71,12.18736656]
[1641062265380,12.1340162,174.78,174.7,44.11496656]
[1641062268183,12.1340162,174.77,174.7,31.9276]
[1641062270684,39.7988062,174.77,174.7,31.9276]
[1641062271487,27.66479,174.77,174.68,27.66479]
[1641062272390,27.66479,174.77,174.68,58.14999]
[1641062273193,12.1340162,174.76,174.68,58.14999]
[1641062273389,12.1340162,174.76,174.68,27.66479]
[1641062273589,43.2808162,174.76,174.68,27.66479]
[1641062274590,12.1340162,174.75,174.68,27.66479]
[1641062275392,43.2808162,174.76,174.68,27.66479]
[1641062275889,31.1468,174.76,174.68,27.66479]
[1641062277793,43.2808162,174.76,174.68,27.66479]
[1641062279493,14.73913171,174.75,174.69,1.45918702]
[1641062279694,19.77513171,174.75,174.69,1.45918702]
[1641062280196,2.60511551,174.74,174.69,1.45918702]
[1641062282700,2.60511551,174.74,174.68,8.6]
[1641062283000,30.26990551,174.74,174.68,8.6]
[1641062283500,30.26990551,174.74,174.69,1.45918702]
[1641062284100,2.60511551,174.74,174.69,1.45918702]
[1641062284301,2.60511551,174.73,174.69,1.45918702]
[1641062285203,30.26990551,174.74,174.69,1.45918702]
[1641062285603,2.60511551,174.73,174.69,1.45918702]
[1641062287803,30.26990551,174.74,174.69,1.45918702]
[1641062288406,2.60511551,174.73,174.69,1.45918702]
[1641062290106,30.26990551,174.74,174.69,1.45918702]
[1641062290307,33.26990551,174.74,174.69,1.45918702]
[1641062290508,30.26990551,174.74,174.69,1.45918702]
[1641062290909,2.60511551,174.73,174.69,1.45918702]
[1641062292008,2.60511551,174.73,174.66,20.24724558]
[1641062292611,12.1340162,174.74,174.66,20.24724558]
[1641062294012,14.73913171,174.75,174.66,20.24724558]
[1641062294411,42.40392171,174.75,174.66,20.24724558]
[1641062295314,14.73913171,174.74,174.66,20.24724558]
[1641062297517,2.60511551,174.74,174.67,12.18736656]
[1641062298121,31.1468,174.76,174.7,12.18736656]
[1641062298422,31.1468,174.76,174.71,27.66479]
[1641062299022,4.0638338,174.75,174.72,1.45918702]
[1641062301127,4.0638338,174.75,174.71,12.18736656]
[1641062302027,4.0638338,174.75,174.7,8.05969687]
[1641062302028,4.0638338,174.74,174.7,20.24706343]
[1641062302828,4.0638338,174.73,174.7,1.45918702]
[1641062304733,4.0638338,174.73,174.69,20.2471948]
[1641062305434,4.0638338,174.72,174.69,13.64655358]
[1641062305634,4.0638338,174.72,174.69,1.45918702]
[1641062306437,7.0638338,174.7,174.66,12.18736656]
[1641062306735,27.66479,174.68,174.66,7.70186656]
[1641062306935,27.66479,174.68,174.66,3.63790096]
[1641062307134,33.55879,174.68,174.66,3.63790096]
[1641062307535,33.55879,174.68,174.62,32.42108051]
[1641062307936,33.55879,174.68,174.57,9.53869448]
[1641062309040,4.06592536,174.63,174.57,9.53869448]
[1641062309839,4.06592536,174.62,174.57,9.53869448]
[1641062310543,9.90307549,174.67,174.6,3.0]
[1641062310741,9.90307549,174.67,174.66,27.66479]
[1641062311146,5.7226244,174.72,174.66,27.66479]
[1641062311545,5.7226244,174.72,174.66,34.06679]
[1641062312944,9.90307549,174.76,174.66,34.06679]
[1641062313145,32.42108051,174.77,174.67,3.0]
[1641062313345,27.66479,174.79,174.67,9.45827974]
[1641062313546,27.66479,174.79,174.68,3.0]
[1641062313845,27.66479,174.79,174.67,6.45827974]
[1641062314049,9.93518424,174.78,174.67,6.45827974]
[1641062314247,9.93518424,174.78,174.67,38.02957974]
[1641062314646,9.93518424,174.78,174.69,27.66479]
[1641062314847,27.66479,174.79,174.69,27.66479]
[1641062316549,27.66479,174.79,174.7,6.45827974]
[1641062317149,9.79865099,174.78,174.69,27.66479]
[1641062322552,42.2197315,174.78,174.69,27.66479]
[1641062324055,9.79865099,174.78,174.69,27.66479]
[1641062334970,9.79865099,174.78,174.68,3.0]
[1641062335375,9.79865099,174.78,174.69,3.0]
[1641062335572,9.79865099,174.78,174.68,3.0]
[1641062335773,9.79865099,174.78,174.67,31.5713]
[1641062335972,9.79865099,174.81,174.73,27.66479]
[1641062337474,12.19024605,174.79,174.73,27.66479]
[1641062343285,12.19024605,174.77,174.73,27.66479]
[1641062343783,12.19024605,174.77,174.71,30.3847]
[1641062344285,12.19024605,174.77,174.71,58.04949]
[1641062346390,12.19024605,174.78,174.71,58.04949]
[1641062346989,2.69903744,174.8,174.72,1.34952498]
[1641062348290,2.69903744,174.8,174.74,27.66479]
[1641062354299,2.69903744,174.8,174.78,27.66479]
[1641062354997,2.69903744,174.81,174.78,27.66479]
[1641062358502,14.88928349,174.81,174.78,27.66479]
[1641062364408,14.88928349,174.81,174.78,55.32958]
[1641062364608,12.19024605,174.81,174.78,55.32958]
[1641062366414,12.19024605,174.82,174.78,55.32958]
[1641062370416,12.19024605,174.82,174.81,27.66479]
[1641062373222,12.62921053,174.84,174.81,27.66479]
[1641062373421,12.62921053,174.84,174.81,21.16477041]
[1641062374325,12.18754592,174.82,174.81,21.16477041]
[1641062374526,12.18754592,174.82,174.75,31.7801]
[1641062374729,15.18754592,174.82,174.75,31.7801]
[1641062374926,12.18754592,174.82,174.75,31.7801]
[1641062375828,4.06244287,174.78,174.76,1.41293112]
[1641062376426,14.88658336,174.8,174.74,1.41293112]
[1641062377329,4.06279153,174.77,174.74,1.41293112]
[1641062378332,4.06279153,174.76,174.74,1.41293112]
[1641062379033,4.06279153,174.78,174.74,19.9234542]
[1641062380636,4.06279153,174.78,174.74,47.5882442]
[1641062381138,4.06279153,174.79,174.75,12.19024605]
[1641062381635,4.06279153,174.79,174.75,19.9234542]
[1641062382635,4.06279153,174.79,174.77,27.66479]
[1641062383037,4.06279153,174.79,174.78,1.41293112]
[1641062384638,4.06279153,174.79,174.78,29.07772112]
[1641062384839,4.06279153,174.79,174.78,27.66479]
[1641062385543,4.06279153,174.79,174.78,29.07772112]
[1641062388047,4.06279153,174.79,174.78,1.41293112]
[1641062388547,2.69903744,174.81,174.78,1.41293112]
[1641062389447,2.69903744,174.81,174.77,1.41293112]
[1641062390348,4.06267379,174.78,174.77,1.41293112]
[1641062394056,4.06267379,174.78,174.75,29.07772112]
[1641062395158,4.06267379,174.78,174.76,1.41293112]
[1641062395558,4.06267379,174.8,174.76,1.41293112]
[1641062396860,4.06267379,174.8,174.75,13.60317717]
[1641062397060,4.06267379,174.8,174.75,20.07442128]
[1641062397259,4.06267379,174.8,174.76,27.66479]
[1641062398361,4.06267379,174.82,174.77,20.07442128]
[1641062399165,4.06267379,174.82,174.77,13.60317717]
[1641062399365,4.06267379,174.81,174.77,1.41293112]
[1641062403368,4.06267379,174.81,174.8,27.66479]
[1641062404173,4.06267379,174.82,174.8,29.07772112]
[1641062404973,4.06267379,174.82,174.81,1.41293112]
[1641062405670,4.06267379,174.82,174.79,1.41293112]
[1641062406972,4.06267379,174.83,174.79,1.41293112]
[1641062407371,4.06267379,174.83,174.79,29.07772112]
[1641062408673,4.06267379,174.83,174.79,27.66479]
[1641062410276,4.06267379,174.84,174.79,27.66479]
[1641062411077,7.06267379,174.84,174.79,27.66479]
[1641062411277,3.0,174.84,174.8,1.40809209]
[1641062411876,31.72746379,174.85,174.8,1.40809209]
[1641062412076,34.72746379,174.85,174.78,30.9235]
[1641062412279,4.06267379,174.82,174.78,30.9235]
[1641062412477,4.06267379,174.82,174.76,27.66479]
[1641062413079,4.06267379,174.82,174.77,1.40803912]
[1641062416182,4.06267379,174.82,174.75,1.40803912]
[1641062417882,4.06267379,174.82,174.78,27.66479]
[1641062418082,4.06267379,174.81,174.78,27.66479]
[1641062420884,4.06267379,174.81,174.74,31.7772]
[1641062421385,4.06267379,174.81,174.75,1.4094401]
[1641062422088,4.06267379,174.81,174.78,27.66479]
[1641062423088,4.06267379,174.81,174.74,31.7772]
[1641062423986,4.06267379,174.81,174.75,1.40985739]
[1641062425190,4.06267379,174.81,174.78,27.66479]
[1641062425789,4.06267379,174.8,174.78,27.66479]
[1641062426289,4.06267379,174.81,174.78,27.66479]
[1641062426589,4.06267379,174.81,174.74,31.7772]
[1641062427089,4.06267379,174.8,174.74,31.7772]
[1641062427492,4.06267379,174.8,174.78,27.66479]
[1641062428092,4.06267379,174.8,174.75,1.40985745]
[1641062428292,4.06267379,174.8,174.74,31.7772]
[1641062429191,4.06267379,174.8,174.75,1.40985792]
[1641062429592,4.06267379,174.8,174.78,27.66479]
[1641062430601,4.06267379,174.82,174.79,1.40985792]
[1641062432399,4.06267379,174.82,174.78,27.66479]
[1641062433000,4.06267379,174.81,174.79,1.41075938]
[1641062434003,36.63177379,174.83,174.78,27.66479]
[1641062434501,4.05577062,174.82,174.79,1.41075938]
[1641062435304,32.5691,174.83,174.76,12.19024605]
[1641062435904,32.5691,174.83,174.78,27.66479]
[1641062436105,4.0557737,174.82,174.78,27.66479]
[1641062436606,32.5691,174.83,174.79,1.41075038]
[1641062437008,4.05642799,174.82,174.78,27.66479]
[1641062437406,4.05642799,174.82,174.76,12.19024605]
[1641062437807,32.5691,174.83,174.76,12.19024605]
[1641062438011,32.5691,174.83,174.79,1.4109729]
[1641062438409,4.05642991,174.82,174.78,27.66479]
[1641062438808,4.05642991,174.82,174.76,12.19024605]
[1641062439009,32.5691,174.83,174.79,1.41097275]
[1641062439708,32.5691,174.83,174.76,12.19024605]
[1641062439911,4.05643429,174.82,174.76,12.19024605]
[1641062440110,4.05643429,174.82,174.79,27.66479]
[1641062440310,32.5691,174.83,174.79,27.66479]
[1641062441213,4.05643353,174.81,174.79,27.66479]
[1641062441411,4.05643353,174.81,174.79,21.16535168]
[1641062445212,4.05643353,174.82,174.8,1.46933388]
[1641062447022,4.05643353,174.81,174.8,1.46933388]
[1641062448418,4.05643353,174.82,174.78,39.85503605]
[1641062449018,4.05643353,174.82,174.79,1.46933388]
[1641062449822,4.05643353,174.82,174.78,12.19024605]
[1641062450320,4.05643353,174.82,174.78,39.85503605]
[1641062451122,4.05643353,174.82,174.79,1.46933388]
[1641062452525,36.62553353,174.83,174.79,20.29102673]
[1641062453524,4.05643353,174.83,174.79,20.29102673]
[1641062455931,4.05643353,174.82,174.79,18.82169285]
[1641062456128,4.05643353,174.82,174.76,1.46933388]
[1641062456129,4.05643353,174.82,174.78,12.19024605]
[1641062457531,4.05643353,174.82,174.81,27.66479]
[1641062459031,4.05643353,174.82,174.81,29.13412388]
[1641062460236,2.27233353,174.82,174.81,29.13412388]
[1641062460436,2.59028943,174.84,174.81,29.13412388]
[1641062460634,2.59028943,174.84,174.81,36.04712388]
[1641062460835,12.18754592,174.88,174.82,1.46933388]
[1641062461935,14.77783535,174.88,174.82,1.46933388]
[1641062462137,2.59028943,174.88,174.82,1.46933388]
[1641062462538,14.77783535,174.88,174.82,1.46933388]
[1641062466943,2.59028943,174.88,174.82,1.46933388]
[1641062475959,2.59028943,174.88,174.81,12.19024605]
[1641062476762,2.59028943,174.88,174.83,27.66479]
[1641062477060,2.59028943,174.88,174.84,1.46933388]
[1641062477864,2.59028943,174.88,174.8,20.37592077]
[1641062478265,31.2282,174.89,174.8,20.37592077]
[1641062478465,31.2282,174.89,174.82,12.19024605]
[1641062479167,2.5529821,174.88,174.83,12.19024605]
[1641062480066,2.5529821,174.88,174.84,3.0]
[1641062480266,12.18754592,174.92,174.85,5.71249036]
[1641062481467,63.14988051,174.96,174.86,1.46933388]
[1641062481468,3.0,174.95,174.86,1.46933388]
[1641062481668,33.7288,174.96,174.86,1.46933388]
[1641062482072,33.7288,174.96,174.88,27.66479]
[1641062482669,30.7288,174.96,174.88,27.66479]
[1641062483070,30.7288,174.96,174.89,1.46933388]
[1641062483771,30.7288,174.96,174.88,27.66479]
[1641062484176,58.39359,174.96,174.88,27.66479]
[1641062486072,2.53754079,174.95,174.88,27.66479]
[1641062488176,58.39359,174.96,174.88,27.66479]
[1641062489278,30.7288,174.96,174.88,27.66479]
[1641062492789,3.0,174.95,174.88,27.66479]
[1641062492988,33.7288,174.96,174.88,27.66479]
[1641062493190,30.7288,174.96,174.88,27.66479]
[1641062494288,58.39359,174.96,174.88,27.66479]
[1641062494490,61.39359,174.96,174.88,27.66479]
[1641062494690,3.0,174.92,174.88,27.66479]
[1641062494889,3.0,174.95,174.88,27.66479]
[1641062495389,3.0,174.94,174.88,27.66479]
[1641062495590,4.964,174.94,174.88,27.66479]
[1641062496192,4.964,174.94,174.84,32.5987]
[1641062496490,29.8614,174.93,174.84,32.5987]
[1641062496691,29.8614,174.93,174.84,35.5987]
[1641062497191,29.8614,174.93,174.88,12.19024605]
[1641062498193,29.8614,174.93,174.88,39.85503605]
[1641062498594,29.8614,174.93,174.89,1.5079008]
[1641062499292,29.8614,174.93,174.88,39.85503605]
[1641062499494,29.8614,174.93,174.88,27.66479]
[1641062500395,29.8614,174.93,174.84,44.78894605]
[1641062500794,29.8614,174.93,174.89,1.50401738]
[1641062501395,29.8614,174.93,174.85,20.40469535]
[1641062501595,23.36544327,174.93,174.85,20.40469535]
[1641062501796,23.36544327,174.93,174.85,18.90067797]
[1641062502598,23.36544327,174.93,174.85,20.34664809]
[1641062503200,23.36544327,174.93,174.85,13.63621617]
[1641062503399,2.60384675,174.92,174.85,1.44597012]
[1641062503800,2.60384675,174.92,174.85,4.44597012]
[1641062504001,12.18754592,174.95,174.85,4.44597012]
[1641062504201,27.66479,174.96,174.86,12.19024605]
[1641062504402,12.18754592,174.97,174.89,27.66479]
[1641062504802,2.60311552,174.95,174.89,27.66479]
[1641062505504,30.6409,174.96,174.9,1.44597012]
[1641062506106,2.60311552,174.95,174.89,1.44597012]
[1641062510509,2.60311552,174.95,174.9,27.66479]
[1641062510910,14.79066144,174.95,174.9,27.66479]
[1641062511413,14.79066144,174.95,174.91,1.44597012]
[1641062512110,14.79066144,174.95,174.89,1.44597012]
[1641062512713,14.79066144,174.95,174.9,27.66479]
[1641062513613,14.79066144,174.95,174.91,1.44597012]
[1641062514414,14.79066144,174.95,174.89,1.44597012]
[1641062514816,14.79066144,174.95,174.92,27.66479]
[1641062515215,2.60311552,174.95,174.92,27.66479]
[1641062516015,2.60311552,174.95,174.93,1.44597012]
[1641062519619,30.6409,174.96,174.92,27.66479]
[1641062521024,34.68569846,174.96,174.92,27.66479]
[1641062523427,34.68569846,174.96,174.88,37.86491155]
[1641062523626,4.04479846,174.95,174.89,1.44460601]
[1641062524928,4.04479846,174.95,174.94,27.66479]
[1641062525430,4.04479846,174.96,174.94,27.66479]
[1641062527127,4.04479846,174.96,174.88,37.86491155]
[1641062527327,4.04479846,174.96,174.88,40.86491155]
[1641062527729,4.04479846,174.96,174.93,27.66479]
[1641062529329,2.60004754,174.99,174.93,27.66479]
[1641062529330,12.18754592,174.97,174.93,27.66479]
[1641062529530,12.18754592,174.97,174.89,12.19024605]
[1641062530033,4.0590263,174.93,174.89,20.21207603]
[1641062530931,4.0590263,174.93,174.92,27.66479]
[1641062531831,4.0590263,174.94,174.92,29.11455703]
[1641062533336,2.60004754,174.96,174.93,1.44976703]
[1641062536239,2.60004754,174.96,174.93,13.64001308]
[1641062536439,47.37519346,175.01,174.93,20.21184861]
[1641062536637,47.37519346,175.01,174.93,49.89724861]
[1641062537137,47.37519346,175.01,174.96,27.66479]
[1641062537339,2.60004754,175.0,174.96,27.66479]
[1641062537837,2.60004754,175.0,174.94,1.44976703]
[1641062538241,2.60004754,175.0,174.97,1.44976703]
[1641062538940,14.78759346,175.0,174.94,1.44976703]
[1641062540240,12.18754592,174.99,174.94,1.44976703]
[1641062548951,4.05873993,174.95,174.94,1.44976703]
[1641062549553,4.05873993,174.96,174.94,1.44976703]
[1641062552253,4.05873993,174.95,174.94,1.44976703]
[1641062557060,2.60004754,174.97,174.94,1.44976703]
[1641062557260,2.60004754,174.97,174.91,1.44976703]
[1641062557860,4.0589537,174.94,174.91,1.44976703]
[1641062560063,4.0589537,174.92,174.91,1.44976703]
[1641062561463,4.0589537,174.93,174.91,1.44976703]
[1641062562365,4.05925478,174.94,174.91,1.44976703]
[1641062562964,29.9799,174.95,174.91,1.44976703]
[1641062563166,29.9799,174.95,174.9,12.19024605]
[1641062563767,34.0389039,174.95,174.91,12.19024605]
[1641062564367,29.9799,174.95,174.91,12.19024605]
[1641062565270,34.03890733,174.95,174.91,20.21217389]
[1641062565570,29.9799,174.95,174.91,20.21217389]
[1641062566372,34.03893499,174.95,174.91,20.21217389]
[1641062567171,4.05921796,174.94,174.9,12.19024605]
[1641062567772,29.9799,174.95,174.9,12.19024605]
[1641062567975,4.05937881,174.93,174.89,12.19024605]
[1641062568674,4.059429,174.92,174.88,20.21217389]
[1641062569376,2.60972593,174.94,174.88,20.21217389]
[1641062569977,4.05944724,174.92,174.88,20.21217389]
[1641062570678,2.60971787,174.94,174.88,20.21217389]
[1641062571183,2.60971787,174.94,174.88,47.87696389]
[1641062571377,4.05945258,174.92,174.88,47.87696389]
[1641062571878,42.15818699,174.95,174.89,1.44976703]
[1641062571879,2.60972551,174.94,174.89,1.44976703]
[1641062572982,4.05945846,174.92,174.88,20.21224889]
[1641062573381,29.9799,174.95,174.88,20.21224889]
[1641062573579,2.60972835,174.94,174.88,20.21224889]
[1641062573979,4.05945468,174.92,174.88,20.21224889]
[1641062574380,4.05945468,174.92,174.89,27.66479]
[1641062574580,42.15826404,174.95,174.89,27.66479]
[1641062574581,29.9799,174.95,174.89,27.66479]
[1641062574783,4.0464002,174.94,174.89,27.66479]
[1641062575281,29.9799,174.95,174.89,27.66479]
[1641062576086,29.9799,174.95,174.87,30.6622]
[1641062576087,34.02631333,174.95,174.9,1.44506296]
[1641062576689,29.9799,174.95,174.89,27.66479]
[1641062577186,29.9799,174.95,174.88,1.44506296]
[1641062577685,34.02631588,174.95,174.9,1.44506296]
[1641062578788,3.0,174.91,174.86,12.19024605]
[1641062578985,27.66479,174.92,174.88,1.44506254]
[1641062578986,3.0,174.89,174.88,1.44506254]
[1641062579187,3.0,174.9,174.88,1.44506254]
[1641062579386,3.0,174.89,174.88,1.44506254]
[1641062579586,3.0,174.89,174.86,12.19024605]
[1641062579786,3.0,174.89,174.81,66.68543605]
[1641062580589,3.0,174.89,174.81,59.29519]
[1641062580788,31.71270843,174.88,174.81,31.6304]
[1641062581289,27.66479,174.88,174.81,31.6304]
[1641062582090,31.712692,174.88,174.81,31.6304]
[1641062583193,27.66479,174.88,174.81,31.6304]
[1641062583793,4.04794489,174.87,174.81,31.6304]
[1641062584492,27.66479,174.88,174.81,31.6304]
[1641062584692,4.06101036,174.85,174.81,31.6304]